bitfinex/quotes_BTCUSD_20250814
["timestamp","ask_amount","ask_price","bid_price","bid_amount"]
[1755187571773,0.33009412,117980.0,117970.0,8.126e-05]
[1755187571982,0.72382026,117980.0,117970.0,8.126e-05]
[1755187572199,0.74882026,117980.0,117970.0,8.126e-05]
[1755187572403,0.33009412,117980.0,117970.0,8.126e-05]
[1755187572820,0.19453462,117970.0,117960.0,0.00185662]
[1755187573038,0.29508849,117970.0,117960.0,0.00414468]
[1755187574413,0.74181463,117970.0,117960.0,0.00200468]
[1755187574775,0.32610849,117970.0,117960.0,0.00014806]
[1755187574978,0.74983463,117970.0,117960.0,0.00014806]
[1755187575189,0.75840285,117970.0,117960.0,0.00014806]
[1755187575811,0.75340285,117970.0,117960.0,0.00014806]
[1755187576073,0.76040285,117970.0,117960.0,0.00014806]
[1755187576288,0.34167671,117970.0,117960.0,0.00014806]
[1755187576496,0.76040285,117970.0,117960.0,0.00014806]
[1755187576917,0.75740285,117970.0,117960.0,0.00014806]
[1755187577349,0.34368317,117970.0,117960.0,0.00014806]
[1755187577994,0.76240931,117970.0,117960.0,0.00014806]
[1755187578211,5.76240931,117970.0,117960.0,0.00014806]
[1755187578637,5.77985833,117970.0,117960.0,0.00014806]
[1755187578843,5.86108833,117970.0,117960.0,0.00014806]
[1755187579056,6.01276833,117970.0,117960.0,0.00014806]
[1755187579476,5.55159317,117970.0,117960.0,0.00014806]
[1755187579704,5.91408931,117970.0,117960.0,0.00014806]
[1755187580141,5.90908931,117970.0,117960.0,0.00014806]
[1755187580343,5.89237223,117970.0,117960.0,0.00014806]
[1755187580557,5.90810793,117970.0,117960.0,0.00014806]
[1755187580761,5.90810793,117970.0,117920.0,0.21202875]
[1755187580762,0.19459213,117930.0,117920.0,0.21202875]
[1755187580985,0.65405397,117930.0,117920.0,0.1545921]
[1755187581428,0.23532783,117930.0,117920.0,0.1545921]
[1755187581627,0.0657357,117930.0,117920.0,0.16201226]
[1755187581866,0.0657357,117930.0,117920.0,0.33161877]
[1755187582076,0.21232783,117930.0,117920.0,0.1577721]
[1755187582349,0.0467357,117930.0,117920.0,0.33161877]
[1755187582563,0.24132783,117930.0,117920.0,0.1579721]
[1755187582765,0.21632783,117930.0,117920.0,0.1579721]
[1755187582977,0.24132783,117930.0,117920.0,0.1579721]
[1755187583186,0.21632783,117930.0,117920.0,0.1579721]
[1755187583393,0.24132783,117930.0,117920.0,0.1579721]
[1755187584030,0.24132783,117930.0,117920.0,0.0030321]
[1755187584211,0.0717357,117930.0,117920.0,0.17581861]
[1755187584448,0.0717357,117930.0,117920.0,0.32773861]
[1755187585083,0.0427357,117930.0,117920.0,0.32773861]
[1755187585266,0.0657357,117930.0,117920.0,0.32773861]
[1755187585508,0.0707357,117930.0,117920.0,0.32773861]
[1755187585714,0.0687357,117930.0,117920.0,0.32773861]
[1755187586153,0.0737357,117930.0,117920.0,0.32773861]
[1755187586362,0.0487357,117930.0,117920.0,0.32773861]
[1755187586573,0.0237357,117930.0,117920.0,1.169188]
[1755187586843,0.0237357,117930.0,117920.0,0.66741861]
[1755187587068,0.0207357,117930.0,117920.0,0.66741861]
[1755187587411,0.0237357,117930.0,117920.0,0.66741861]
[1755187587618,0.0237357,117930.0,117920.0,1.08614475]
[1755187587865,0.0237357,117930.0,117920.0,0.51581861]
[1755187588068,0.0237357,117930.0,117920.0,0.66737861]
[1755187590250,0.02369653,117930.0,117920.0,0.66737861]
[1755187590454,0.008,117930.0,117920.0,0.66737861]
[1755187590655,0.02369713,117930.0,117920.0,0.66737861]
[1755187591230,0.008,117930.0,117920.0,0.66677861]
[1755187592020,0.008,117930.0,117920.0,1.26816145]
[1755187593526,0.008,117930.0,117920.0,1.34647145]
[1755187593756,0.008,117930.0,117920.0,1.40656793]
[1755187593983,0.008,117930.0,117920.0,1.0728155]
[1755187594188,0.008,117930.0,117920.0,0.65408936]
[1755187594401,0.008,117930.0,117920.0,0.80484936]
[1755187594614,0.008,117930.0,117920.0,1.2234955]
[1755187594819,0.008,117930.0,117920.0,0.25854186]
[1755187595068,0.008,117930.0,117920.0,0.40930186]
[1755187595286,0.008,117930.0,117920.0,0.59854186]
[1755187595492,0.008,117930.0,117920.0,0.74930186]
[1755187595692,0.008,117930.0,117920.0,0.25854186]
[1755187595898,0.008,117930.0,117920.0,0.40946186]
[1755187596104,0.008,117930.0,117920.0,0.74946186]
[1755187598276,0.008,117930.0,117920.0,0.59854186]
[1755187598488,0.008,117930.0,117920.0,0.74628186]
[1755187598697,0.01014,117930.0,117920.0,0.74628186]
[1755187599743,0.01014,117930.0,117920.0,0.74620186]
[1755187600875,0.01316,117930.0,117920.0,0.74620186]
[1755187601081,0.18275213,117930.0,117920.0,0.4938721]
[1755187601319,0.01316,117930.0,117920.0,0.66133861]
[1755187601725,0.01316,117930.0,117920.0,0.51049861]
[1755187601922,0.01316,117930.0,117920.0,0.66097861]
[1755187602186,0.18275213,117930.0,117920.0,0.4912921]
[1755187602386,0.18275213,117930.0,117920.0,0.4913721]
[1755187602745,0.01316,117930.0,117920.0,0.66097861]
[1755187602949,0.01316,117930.0,117920.0,0.51049861]
[1755187603155,0.01316,117930.0,117920.0,0.66093861]
[1755187603367,0.18275213,117930.0,117920.0,0.51049861]
[1755187603506,0.01316,117930.0,117920.0,0.66093861]
[1755187603714,0.01016,117930.0,117920.0,0.51049861]
[1755187603921,0.01016,117930.0,117920.0,0.66093861]
[1755187604141,0.01016,117930.0,117920.0,0.1513321]
[1755187604142,0.65147827,117930.0,117920.0,0.1513321]
[1755187604351,0.65147827,117930.0,117920.0,0.15345218]
[1755187604554,0.23275213,117930.0,117920.0,0.15345218]
[1755187605374,0.22775213,117930.0,117920.0,0.15345218]
[1755187605580,0.23375213,117930.0,117920.0,0.15345218]
[1755187606304,0.23075213,117930.0,117920.0,0.15345218]
[1755187606648,0.23475213,117930.0,117920.0,0.15345218]
[1755187606876,0.23475213,117930.0,117920.0,0.15333218]
[1755187607494,0.23475213,117930.0,117920.0,0.1512121]
[1755187607636,0.65347827,117930.0,117920.0,0.0008921]
[1755187608059,0.23475213,117930.0,117920.0,0.1517321]
[1755187608260,0.23475213,117930.0,117920.0,0.00301218]
[1755187609433,0.20975213,117930.0,117920.0,0.00301218]
[1755187609640,0.22959213,117930.0,117920.0,0.00726226]
[1755187610059,0.23475213,117930.0,117920.0,0.0030221]
[1755187610281,0.23475213,117930.0,117920.0,0.0008921]
[1755187610696,0.65347827,117930.0,117920.0,0.0008921]
[1755187611779,0.23475213,117930.0,117920.0,0.0008921]
[1755187612372,0.035,117930.0,117920.0,0.17686877]
[1755187612575,0.035,117930.0,117920.0,0.17262861]
[1755187613018,0.06,117930.0,117920.0,0.17262861]
[1755187613187,0.035,117930.0,117920.0,0.17262861]
[1755187613583,0.01,117930.0,117920.0,0.17262861]
[1755187613844,0.20459213,117930.0,117920.0,0.0030221]
[1755187614155,0.20673213,117930.0,117920.0,0.17262861]
[1755187614349,0.03714,117930.0,117920.0,0.17262861]
[1755187614563,0.20673213,117930.0,117920.0,0.0030221]
[1755187614770,0.20975213,117930.0,117920.0,0.0008921]
[1755187615405,0.01516,117930.0,117920.0,0.17049861]
[1755187615612,0.01,117930.0,117920.0,0.17568861]
[1755187615834,0.035,117930.0,117920.0,0.17568861]
[1755187616034,0.035,117930.0,117920.0,0.17262861]
[1755187616771,0.01,117930.0,117920.0,1.08505799]
[1755187617158,0.01,117930.0,117920.0,1.03458702]
[1755187617450,0.01,117930.0,117920.0,0.61586088]
[1755187619408,0.01,117930.0,117920.0,1.03458702]
[1755187619796,0.01,117930.0,117920.0,0.61586088]
[1755187619999,0.01,117930.0,117920.0,0.79294188]
[1755187620225,0.01,117930.0,117920.0,0.67874514]
[1755187620469,0.01,117930.0,117920.0,0.87557673]
[1755187620643,0.00771376,117930.0,117920.0,0.87557673]
[1755187621077,0.00771376,117930.0,117920.0,1.29430287]
[1755187621310,0.00771376,117930.0,117920.0,1.24915128]
[1755187621540,0.02802,117990.0,117980.0,0.16952025]
[1755187621768,0.025,117990.0,117980.0,0.32341025]
[1755187622171,0.02714,117990.0,117980.0,0.32341025]
[1755187622370,0.19966589,117990.0,117980.0,0.15176]
[1755187622750,0.19966589,117990.0,117980.0,0.32142784]
[1755187622951,0.03816,117990.0,117980.0,0.32142784]
[1755187623155,0.03816,117990.0,117980.0,0.32355784]
[1755187623340,0.03816,117990.0,117980.0,0.32142784]
[1755187623537,0.04416,117990.0,117980.0,0.37137176]
[1755187623740,0.21064589,117990.0,117980.0,0.00874782]
[1755187623942,0.23866589,117990.0,117980.0,0.16046782]
[1755187624491,0.23866589,117990.0,117980.0,0.32998807]
[1755187624637,0.23866589,117990.0,117980.0,0.16046782]
[1755187624844,0.06916,117990.0,117980.0,0.33422607]
[1755187625047,0.23866589,117990.0,117980.0,0.16046782]
[1755187626210,0.23866589,117990.0,117980.0,0.15186759]
[1755187626631,0.65739203,117990.0,117980.0,0.15186759]
[1755187627841,0.74011528,117990.0,117980.0,0.00014759]
[1755187628093,0.81340528,117990.0,117980.0,0.00014759]
[1755187628480,0.39467914,117990.0,117980.0,0.00014759]
[1755187628625,0.74011528,117990.0,117980.0,0.00014759]
[1755187629472,0.7483841,117990.0,117980.0,0.00014759]
[1755187630006,0.32138914,117990.0,117980.0,0.00014759]
[1755187630151,0.74011528,117990.0,117980.0,0.00226659]
[1755187630354,0.32138914,117990.0,117980.0,0.00226659]
[1755187630576,0.06916,117990.0,117980.0,0.17178684]
[1755187630776,0.06614,117990.0,117980.0,0.17180784]
[1755187630992,0.23564589,117990.0,117980.0,0.17180784]
[1755187631156,0.06614,117990.0,117980.0,0.17180784]
[1755187631360,0.23564589,117990.0,117980.0,0.17180784]
[1755187631671,0.23858589,117990.0,117980.0,0.00014759]
[1755187631897,0.65731203,117990.0,117980.0,0.00014759]
[1755187632230,0.65731203,117990.0,117980.0,0.15198759]
[1755187632433,0.65731203,117990.0,117980.0,0.00014759]
[1755187632558,0.65731203,117990.0,117980.0,0.15182759]
[1755187632756,0.65731203,117990.0,117980.0,0.00014759]
[1755187632964,0.65731203,117990.0,117980.0,0.15170759]
[1755187633449,0.73003528,117990.0,117980.0,0.00014759]
[1755187633646,0.73201528,117990.0,117980.0,0.00014759]
[1755187633788,0.88349528,117990.0,117980.0,0.00014759]
[1755187633985,0.95678528,117990.0,117980.0,0.00014759]
[1755187634787,1.29678528,117990.0,117980.0,0.00014759]
[1755187635179,1.29654528,117990.0,117980.0,0.00014759]
[1755187636075,1.14530528,117990.0,117980.0,0.00014759]
[1755187636295,1.29654528,117990.0,117980.0,0.00014759]
[1755187636521,1.33493716,117990.0,117980.0,0.00014759]
[1755187637476,0.91621102,117990.0,117980.0,0.00014759]
[1755187637655,1.33493716,117990.0,117980.0,0.00014759]
[1755187641210,6.33493716,117990.0,117980.0,0.00014759]
[1755187643897,5.91621102,117990.0,117980.0,0.00014759]
[1755187644132,6.33493716,117990.0,117980.0,0.00014759]
[1755187644350,6.33389716,117990.0,117980.0,0.00014759]
[1755187651368,6.10746716,117990.0,117980.0,0.00014759]
[1755187651575,6.10746716,117990.0,117980.0,0.00228759]
[1755187651576,1.08246716,117990.0,117980.0,0.00228759]
[1755187651783,1.23154716,117990.0,117980.0,0.00228759]
[1755187651924,1.25948716,117990.0,117980.0,0.00014759]
[1755187652591,6.25948716,117990.0,117980.0,0.00014759]
[1755187653586,6.25348716,117990.0,117980.0,0.00014759]
[1755187653823,6.25934716,117990.0,117980.0,0.00014759]
[1755187654021,6.26234716,117990.0,117980.0,0.00114759]
[1755187654438,0.16954899,117960.0,117950.0,0.00299]
[1755187654640,0.86983838,117960.0,117950.0,0.00513]
[1755187655584,0.87283838,117960.0,117950.0,0.00513]
[1755187655792,0.88147432,117960.0,117950.0,0.00513]
[1755187657790,0.88247432,117960.0,117950.0,0.00613]
[1755187658000,0.46573818,117960.0,117950.0,0.00316]
[1755187658203,0.46573818,117960.0,117950.0,0.001]
[1755187658204,0.88764432,117960.0,117950.0,0.001]
[1755187658461,5.88764432,117960.0,117950.0,0.001]
[1755187659096,5.88764432,117960.0,117930.0,0.00296]
[1755187659097,0.19457775,117940.0,117930.0,0.00296]
[1755187659301,0.63830389,117940.0,117930.0,0.00512]
[1755187659719,0.78762389,117940.0,117930.0,0.00512]
[1755187660306,0.78777129,117940.0,117930.0,0.00512]
[1755187660516,0.63745129,117940.0,117930.0,0.00512]
[1755187660960,0.3034384,117940.0,117930.0,0.00216]
[1755187661174,0.3034384,117940.0,117920.0,0.00336]
[1755187661175,0.21759213,117930.0,117920.0,0.00336]
[1755187661393,0.63631827,117930.0,117920.0,0.00552]
[1755187661597,0.21759213,117930.0,117920.0,0.00552]
[1755187661794,0.63631827,117930.0,117920.0,0.00552]
[1755187661999,0.21759213,117930.0,117920.0,0.00552]
[1755187662409,0.63731827,117930.0,117920.0,0.00952]
[1755187662609,0.64030827,117930.0,117920.0,0.0044]
[1755187662816,0.22158213,117930.0,117920.0,0.00656]
[1755187663032,0.87659152,117930.0,117920.0,0.00656]
[1755187663248,0.30648538,117930.0,117920.0,0.0044]
[1755187663454,0.88025152,117930.0,117920.0,0.0044]
[1755187663655,0.88025152,117930.0,117920.0,0.0004]
[1755187664061,5.46152538,117930.0,117920.0,0.0004]
[1755187664265,5.46252538,117930.0,117920.0,0.0014]
[1755187664492,5.88025152,117930.0,117920.0,0.0004]
[1755187664699,5.30031538,117930.0,117920.0,0.00552]
[1755187664902,0.22059213,117930.0,117920.0,0.00652]
[1755187665115,0.64231827,117930.0,117920.0,0.00652]
[1755187665325,0.22359213,117930.0,117920.0,0.00356]
[1755187665538,0.22876213,117930.0,117920.0,0.0014]
[1755187665753,0.22876213,117930.0,117870.0,0.18740955]
[1755187665754,0.16964967,117890.0,117870.0,0.17002218]
[1755187665967,0.16964967,117890.0,117880.0,0.00216]
[1755187666374,0.16964967,117890.0,117880.0,0.34512]
[1755187667227,0.17079696,117890.0,117880.0,0.34512]
[1755187667925,0.17179696,117890.0,117880.0,0.34712]
[1755187668388,0.17279696,117890.0,117880.0,0.34712]
[1755187668625,0.6185131,117890.0,117880.0,0.002]
[1755187668865,0.6415131,117890.0,117880.0,0.002]
[1755187669094,5.79407821,117890.0,117880.0,0.002]
[1755187669299,6.22667723,117890.0,117880.0,1e-08]
[1755187669504,0.19270725,117850.0,117840.0,0.0004]
[1755187669711,0.81077339,117850.0,117840.0,0.0004]
[1755187669913,5.89349664,117850.0,117840.0,0.0004]
[1755187670046,0.72233664,117850.0,117840.0,0.0004]
[1755187670249,0.3004305,117850.0,117840.0,0.0004]
[1755187670450,0.2994305,117850.0,117840.0,0.0004]
[1755187670649,0.71815664,117850.0,117840.0,0.0004]
[1755187671030,0.71815664,117850.0,117840.0,0.17308165]
[1755187671031,0.16885446,117850.0,117840.0,0.17308165]
[1755187671223,0.21885446,117850.0,117840.0,0.00436]
[1755187671419,0.02514721,117850.0,117840.0,0.17408165]
[1755187671691,0.00214721,117850.0,117840.0,0.51408165]
[1755187671926,0.00214721,117850.0,117840.0,1.03298006]
[1755187672115,0.00214721,117850.0,117840.0,1.11019006]
[1755187672343,0.00214721,117850.0,117840.0,1.11219006]
[1755187672579,0.00514721,117850.0,117840.0,0.77594835]
[1755187673008,0.00214721,117850.0,117840.0,0.78901392]
[1755187673225,0.00014721,117850.0,117840.0,0.78801392]
[1755187673470,0.00014721,117850.0,117840.0,0.78901392]
[1755187673714,0.00214721,117850.0,117840.0,0.78901392]
[1755187674090,0.00214721,117850.0,117840.0,0.44701392]
[1755187674441,0.00514721,117850.0,117840.0,0.86949835]
[1755187675074,0.00514721,117850.0,117840.0,0.5968049]
[1755187675287,0.17485446,117850.0,117840.0,0.00436]
[1755187675465,0.72748385,117850.0,117840.0,0.0014]
[1755187676103,0.30875771,117850.0,117840.0,0.0014]
[1755187676725,0.72548385,117850.0,117840.0,0.0004]
[1755187677070,0.72748385,117850.0,117840.0,0.0004]
[1755187678311,0.72448385,117850.0,117840.0,0.0004]
[1755187678481,0.72748385,117850.0,117840.0,0.0004]
[1755187678703,0.30875771,117850.0,117840.0,0.0004]
[1755187678910,0.72248385,117850.0,117840.0,0.0004]
[1755187679317,0.85986237,117850.0,117840.0,0.0004]
[1755187679520,0.87549903,117850.0,117840.0,0.0004]
[1755187679937,5.87549903,117850.0,117840.0,0.0004]
[1755187680383,6.22049903,117850.0,117840.0,1e-08]
[1755187680804,6.21549903,117850.0,117840.0,1e-08]
[1755187681298,6.22249903,117850.0,117840.0,1e-08]
[1755187681814,6.21749903,117850.0,117840.0,1e-08]
[1755187682035,5.79177289,117850.0,117840.0,1e-08]
[1755187682261,6.39205903,117850.0,117840.0,1e-08]
[1755187682517,6.39205903,117850.0,117830.0,1e-08]
[1755187682518,0.55772165,117840.0,117830.0,1e-08]
[1755187682738,5.99526445,117840.0,117830.0,1e-08]
[1755187682942,5.57653831,117840.0,117830.0,1e-08]
[1755187683156,5.59398733,117840.0,117830.0,1e-08]
[1755187683369,5.98971347,117840.0,117830.0,1e-08]
[1755187683580,5.59398733,117840.0,117830.0,1e-08]
[1755187683786,6.01271347,117840.0,117830.0,1e-08]
[1755187683998,5.66426156,117840.0,117830.0,1e-08]
[1755187684491,6.0599877,117840.0,117830.0,1e-08]
[1755187684727,5.66426156,117840.0,117830.0,1e-08]
[1755187685164,6.0829877,117840.0,117830.0,1e-08]
[1755187685582,6.0889877,117840.0,117830.0,1e-08]
[1755187686447,6.0659877,117840.0,117830.0,1e-08]
[1755187686664,6.0889877,117840.0,117830.0,1e-08]
[1755187686871,6.10643672,117840.0,117830.0,1e-08]
[1755187687097,5.68771058,117840.0,117830.0,1e-08]
[1755187687319,6.10643672,117840.0,117830.0,1e-08]
[1755187687799,5.68771058,117840.0,117830.0,1e-08]
[1755187688223,6.10643672,117840.0,117830.0,1e-08]
[1755187688653,5.82166156,117840.0,117830.0,1e-08]
[1755187688919,0.30408156,117840.0,117830.0,1e-08]
[1755187689169,0.50164156,117840.0,117830.0,1e-08]
[1755187689614,0.7228077,117840.0,117830.0,0.00311001]
[1755187689820,0.22135831,117840.0,117830.0,0.00523171]
[1755187690022,0.24435831,117840.0,117830.0,0.00523171]
[1755187690254,0.24435831,117840.0,117830.0,0.00311001]
[1755187690464,0.66308445,117840.0,117830.0,0.00311001]
[1755187690669,0.65808445,117840.0,117830.0,0.00311001]
[1755187691088,0.7408077,117840.0,117830.0,1e-08]
[1755187691297,5.7438177,117840.0,117830.0,1e-08]
[1755187692345,5.32509156,117840.0,117830.0,1e-08]
[1755187692560,5.7438177,117840.0,117830.0,1e-08]
[1755187692755,5.9192577,117840.0,117830.0,1e-08]
[1755187693016,5.50053156,117840.0,117830.0,1e-08]
[1755187693222,5.9192577,117840.0,117830.0,1e-08]
[1755187693651,5.91700884,117840.0,117830.0,1e-08]
[1755187693855,5.5031143,117840.0,117830.0,1e-08]
[1755187694055,0.92184044,117840.0,117830.0,1e-08]
[1755187694256,0.92184044,117840.0,117830.0,0.00311001]
[1755187694257,0.24495105,117840.0,117830.0,0.00311001]
[1755187694688,0.24495105,117840.0,117830.0,0.00523171]
[1755187695527,0.24495105,117840.0,117830.0,0.00311001]
[1755187695756,0.24495105,117840.0,117830.0,0.00523171]
[1755187695941,0.24495105,117840.0,117830.0,0.00735341]
[1755187696648,0.2450066,117840.0,117830.0,0.00735341]
[1755187696847,0.24500518,117840.0,117830.0,0.00311001]
[1755187697051,0.24500518,117840.0,117830.0,0.00735341]
[1755187697263,0.24500518,117840.0,117830.0,0.00311001]
[1755187697477,0.24500518,117840.0,117830.0,0.00735341]
[1755187697709,0.24500518,117840.0,117830.0,0.00311001]
[1755187697912,0.24500518,117840.0,117830.0,0.0042434]
[1755187698124,0.19700518,117840.0,117830.0,0.0042434]
[1755187698736,0.22000518,117840.0,117830.0,0.0042434]
[1755187698942,0.16973606,117830.0,117820.0,0.82369983]
[1755187699145,0.18542685,117830.0,117820.0,0.93381016]
[1755187699346,0.18542685,117830.0,117820.0,0.90642308]
[1755187699575,0.20842685,117830.0,117820.0,0.73667326]
[1755187699986,0.20842685,117830.0,117820.0,0.73978326]
[1755187700606,0.20742685,117830.0,117820.0,0.73978326]
[1755187700743,0.20742978,117830.0,117820.0,0.73978326]
[1755187700948,0.20742978,117830.0,117820.0,0.82226769]
[1755187701370,0.21542978,117830.0,117820.0,0.82326769]
[1755187701945,1.21542978,117830.0,117820.0,0.82326769]
[1755187702486,1.19242978,117830.0,117820.0,0.91053372]
[1755187702907,1.19242978,117830.0,117820.0,0.74078326]
[1755187703323,1.21542978,117830.0,117820.0,0.74078326]
[1755187703524,1.19973606,117830.0,117820.0,0.74078326]
[1755187703720,1.17673606,117830.0,117820.0,0.74078326]
[1755187703889,1.19973606,117830.0,117820.0,0.74078326]
[1755187704300,1.21545323,117830.0,117820.0,0.74078326]
[1755187704495,1.21545323,117830.0,117820.0,0.74273326]
[1755187704966,1.19245323,117830.0,117820.0,0.74273326]
[1755187705166,1.21545323,117830.0,117820.0,0.73962326]
[1755187705303,1.21545323,117830.0,117820.0,0.56378326]
[1755187705505,1.21545323,117830.0,117820.0,0.65542001]
[1755187705736,1.22331503,117830.0,117820.0,0.65542001]
[1755187705932,1.67204093,117830.0,117820.0,0.13911001]
[1755187706130,1.24831479,117830.0,117820.0,0.14318189]
[1755187706643,1.23259762,117830.0,117820.0,0.14530377]
[1755187707647,1.23759762,117830.0,117820.0,0.13911001]
[1755187707866,1.23759762,117830.0,117820.0,0.14106001]
[1755187708078,1.23458762,117830.0,117820.0,0.14106001]
[1755187708286,1.23259762,117830.0,117820.0,0.14530377]
[1755187708694,1.23458903,117830.0,117820.0,0.14530377]
[1755187709137,1.23259903,117830.0,117820.0,0.14530377]
[1755187709357,1.23458903,117830.0,117820.0,0.14106001]
[1755187709952,1.23458903,117830.0,117820.0,0.14530377]
[1755187710131,1.23458903,117830.0,117820.0,0.14106001]
[1755187710499,1.25031772,117830.0,117820.0,0.14530377]
[1755187710703,1.22432772,117830.0,117820.0,0.31816423]
[1755187711003,1.02372869,117830.0,117820.0,0.73664372]
[1755187711178,1.008,117830.0,117820.0,1.17086888]
[1755187711336,1.008,117830.0,117820.0,0.75214274]
[1755187711961,1.004,117830.0,117820.0,0.75214274]
[1755187712230,1.008,117830.0,117820.0,0.75214274]
[1755187712641,1.008,117830.0,117820.0,1.17086888]
[1755187712848,0.61549466,117830.0,117820.0,1.29045363]
[1755187713055,0.61549466,117830.0,117820.0,1.36901363]
[1755187713262,0.61749466,117830.0,117820.0,1.3859292]
[1755187713663,0.18582298,117830.0,117820.0,1.4624892]
[1755187713869,0.18882298,117830.0,117820.0,1.4624892]
[1755187714025,0.00014721,117850.0,117840.0,0.16972165]
[1755187714229,0.00014721,117850.0,117840.0,0.74397049]
[1755187714433,0.00014721,117850.0,117840.0,0.32524435]
[1755187714671,0.00014721,117850.0,117840.0,0.2810129]
[1755187715090,0.01588105,117850.0,117840.0,0.2810129]
[1755187715332,0.00014721,117850.0,117840.0,0.2810129]
[1755187715524,0.00214721,117850.0,117840.0,0.2810129]
[1755187715702,0.00214721,117850.0,117840.0,0.36349733]
[1755187716456,0.00314721,117850.0,117840.0,0.36449733]
[1755187716648,0.00214721,117850.0,117840.0,0.36349733]
[1755187716850,0.00314721,117850.0,117840.0,0.2820129]
[1755187717063,0.00314721,117850.0,117840.0,0.4582129]
[1755187717262,0.00514721,117850.0,117840.0,0.4592129]
[1755187717393,0.00514721,117850.0,117840.0,0.87793904]
[1755187718000,0.00514721,117850.0,117840.0,0.85248104]
[1755187718702,0.17485446,117850.0,117840.0,0.2544449]
[1755187718934,0.24560632,117850.0,117840.0,0.08472325]
[1755187719147,0.66433246,117850.0,117840.0,0.002]
[1755187719347,0.26860632,117850.0,117840.0,0.002]
[1755187719752,0.70305741,117850.0,117840.0,0.002]
[1755187720092,0.21666941,117850.0,117840.0,0.002]
[1755187720510,0.17794446,117850.0,117840.0,0.00624304]
[1755187720713,0.20094446,117850.0,117840.0,0.002]
[1755187720937,0.26860632,117850.0,117840.0,0.002]
[1755187721347,0.6196706,117850.0,117840.0,0.002]
[1755187721559,0.71233246,117850.0,117840.0,0.002]
[1755187721780,0.29360632,117850.0,117840.0,0.002]
[1755187721985,0.7280596,117850.0,117840.0,0.002]
[1755187722194,0.88431285,117850.0,117840.0,0.002]
[1755187722385,0.86858571,117850.0,117840.0,0.002]
[1755187722589,0.88431266,117850.0,117840.0,0.002]
[1755187722792,0.8136508,117850.0,117840.0,0.001]
[1755187722920,0.19373606,117830.0,117820.0,0.65375001]
[1755187723506,0.16773606,117830.0,117820.0,0.80184826]
[1755187723699,0.17082606,117830.0,117820.0,0.71912501]
[1755187723982,0.17082606,117830.0,117820.0,0.65375001]
[1755187724214,0.19782606,117830.0,117820.0,0.47911001]
[1755187724349,0.6165522,117830.0,117820.0,0.47911001]
[1755187724554,0.6395522,117830.0,117820.0,0.13911001]
[1755187724754,0.6395522,117830.0,117820.0,0.14011001]
[1755187724755,0.6415522,117830.0,117820.0,0.14011001]
[1755187725177,0.22282606,117830.0,117820.0,0.14011001]
[1755187725414,0.22282606,117830.0,117820.0,0.14223189]
[1755187725577,0.22282606,117830.0,117820.0,0.39446678]
[1755187725774,0.22282606,117830.0,117820.0,0.22259444]
[1755187725982,0.22282606,117830.0,117820.0,0.14011001]
[1755187726153,0.22282606,117830.0,117820.0,0.14223189]
[1755187726348,0.22282606,117830.0,117820.0,0.31198235]
[1755187726349,0.03009,117830.0,117820.0,0.31198235]
[1755187726555,0.027,117830.0,117820.0,0.30986047]
[1755187726774,0.004,117830.0,117820.0,0.30986047]
[1755187726974,0.027,117830.0,117820.0,0.30986047]
[1755187727543,0.004,117830.0,117820.0,0.30986047]
[1755187727744,0.004,117830.0,117820.0,0.73258372]
[1755187727934,0.004,117830.0,117820.0,1.17180888]
[1755187728396,0.004,117830.0,117820.0,0.75308274]
[1755187728596,0.004,117830.0,117820.0,1.17180888]
[1755187728926,0.004,117830.0,117820.0,0.75308274]
[1755187729127,0.004,117830.0,117820.0,0.83556717]
[1755187729330,0.004,117830.0,117820.0,0.75308274]
[1755187729764,0.004,117830.0,117820.0,0.75003274]
[1755187730203,0.17373606,117830.0,117820.0,0.92567274]
[1755187730619,0.17323606,117830.0,117820.0,0.92567274]
[1755187730852,0.17323606,117830.0,117820.0,0.75592228]
[1755187730978,0.17323606,117830.0,117820.0,1.00815717]
[1755187731183,0.0035,117830.0,117820.0,0.92567274]
[1755187731635,0.0035,117830.0,117820.0,0.92872274]
[1755187732827,0.17323606,117830.0,117820.0,0.92567274]
[1755187733072,0.17632606,117830.0,117820.0,0.56283326]
[1755187733286,0.17632606,117830.0,117820.0,0.73807326]
[1755187733716,0.17632606,117830.0,117820.0,0.82055769]
[1755187734030,0.17632606,117830.0,117820.0,0.65535001]
[1755187734031,0.5950522,117830.0,117820.0,0.65535001]
[1755187734266,0.5935522,117830.0,117820.0,0.65435001]
[1755187734477,0.17282606,117830.0,117820.0,0.65335001]
[1755187734885,0.19582606,117830.0,117820.0,0.65335001]
[1755187735249,0.19582606,117830.0,117820.0,0.71868501]
[1755187735448,0.6395522,117830.0,117820.0,0.65323001]
[1755187735646,0.6185522,117830.0,117820.0,0.65323001]
[1755187735849,0.6435522,117830.0,117820.0,0.65323001]
[1755187736496,0.22482606,117830.0,117820.0,0.65323001]
[1755187736696,0.22482606,117830.0,117820.0,0.31323001]
[1755187736871,0.22482606,117830.0,117820.0,0.13811001]
[1755187737079,0.6435522,117830.0,117820.0,0.13811001]
[1755187738420,0.22482606,117830.0,117820.0,0.13811001]
[1755187739033,0.6435522,117830.0,117820.0,0.13811001]
[1755187740255,0.22482606,117830.0,117820.0,0.13811001]
[1755187740639,0.6435522,117830.0,117820.0,0.13811001]
[1755187741551,0.65208139,117830.0,117820.0,0.13811001]
[1755187742226,0.8194422,117830.0,117820.0,0.13811001]
[1755187742363,0.40071606,117830.0,117820.0,0.13811001]
[1755187742759,0.6455222,117830.0,117820.0,0.13811001]
[1755187743305,0.65397366,117830.0,117820.0,0.16937701]
[1755187743510,0.65397366,117830.0,117820.0,0.13811001]
[1755187744116,0.73669691,117830.0,117820.0,0.13811001]
[1755187744686,0.73563691,117830.0,117820.0,0.13811001]
[1755187744924,0.72718545,117830.0,117820.0,0.13811001]
[1755187746454,0.31709113,117830.0,117820.0,0.13811001]
[1755187746653,0.72718545,117830.0,117820.0,0.13811001]
[1755187748254,0.30845931,117830.0,117820.0,0.13811001]
[1755187748466,0.72718545,117830.0,117820.0,0.13811001]
[1755187749635,0.73551937,117830.0,117820.0,0.13811001]
[1755187749857,5.73551937,117830.0,117820.0,0.13811001]
[1755187750076,5.80961937,117830.0,117820.0,0.13811001]
[1755187750743,6.14761937,117830.0,117820.0,0.13811001]
[1755187750960,6.15061937,117830.0,117820.0,0.13811001]
[1755187751177,6.17261698,117830.0,117820.0,0.13811001]
[1755187751400,6.14861937,117830.0,117820.0,0.13811001]
[1755187752081,6.12561937,117830.0,117820.0,0.13811001]
[1755187752333,1.24751937,117830.0,117820.0,0.13811001]
[1755187752785,1.24951937,117830.0,117820.0,0.13811001]
[1755187753015,0.83079323,117830.0,117820.0,0.13811001]
[1755187753307,0.20373606,117830.0,117820.0,0.13811001]